[Event "Titled Tuesday Blitz December 20 Late 2022"]
[White "Vlassov, Nikolai"]
[Black "Flynn, Jacob"]
[WhiteFideId "4103360"]
[BlackFideId "2509393"]
[WhiteElo "2324"]
[BlackElo "2053"]
[Result "1-0"]
[Round "03"]
[TimeControl "180+1"]
[Date "2022.12.21"]
[WhiteClock "0:00:13"]
[BlackClock "0:00:07"]

1. e4 {[%clk 0:03:00]}  e5 {[%clk 0:02:57]} 2. Bc4 {[%clk 0:03:00]}  Nf6 {[%clk 0:02:57]} 3. d3 {[%clk 0:03:00]}  Nc6 {[%clk 0:02:58]} 4. Nf3 {[%clk 0:02:59]}  Bc5 {[%clk 0:02:58]} 5. Bg5 {[%clk 0:02:59]}  h6 {[%clk 0:02:58]} 6. Bh4 {[%clk 0:02:59]}  Be7 {[%clk 0:02:55]} 7. Nc3 {[%clk 0:02:56]}  d6 {[%clk 0:02:56]} 8. Bxf6 {[%clk 0:02:52]}  Bxf6 {[%clk 0:02:56]} 9. Nd5 {[%clk 0:02:53]}  O-O {[%clk 0:02:56]} 10. h3 {[%clk 0:02:50]}  Be6 {[%clk 0:02:52]} 11. Qd2 {[%clk 0:02:48]}  Bxd5 {[%clk 0:02:26]} 12. Bxd5 {[%clk 0:02:47]}  Ne7 {[%clk 0:02:26]} 13. Bb3 {[%clk 0:02:46]}  c6 {[%clk 0:02:22]} 14. O-O {[%clk 0:02:34]}  d5 {[%clk 0:02:12]} 15. Rae1 {[%clk 0:02:31]}  Qd6 {[%clk 0:02:11]} 16. Qe3 {[%clk 0:02:22]}  Ng6 {[%clk 0:02:04]} 17. Nh2 {[%clk 0:01:55]}  Bg5 {[%clk 0:01:44]} 18. Qf3 {[%clk 0:01:53]}  Rad8 {[%clk 0:01:38]} 19. Ng4 {[%clk 0:01:51]}  Rfe8 {[%clk 0:01:28]} 20. g3 {[%clk 0:01:47]}  Be7 {[%clk 0:01:21]} 21. Ne3 {[%clk 0:01:44]}  dxe4 {[%clk 0:01:00]} 22. dxe4 {[%clk 0:01:37]}  Qf6 {[%clk 0:00:55]} 23. Nf5 {[%clk 0:01:33]}  Bc5 {[%clk 0:00:54]} 24. Nxh6+ {[%clk 0:01:29]}  Kh7 {[%clk 0:00:54]} 25. Qxf6 {[%clk 0:01:27]}  gxf6 {[%clk 0:00:55]} 26. Nf5 {[%clk 0:01:17]}  Rd2 {[%clk 0:00:54]} 27. Bxf7 {[%clk 0:01:14]}  Rf8 {[%clk 0:00:53]} 28. Bb3 {[%clk 0:01:10]}  Rfd8 {[%clk 0:00:49]} 29. Kg2 {[%clk 0:01:07]}  b5 {[%clk 0:00:48]} 30. Kf3 {[%clk 0:01:02]}  a5 {[%clk 0:00:47]} 31. a4 {[%clk 0:01:02]}  Ne7 {[%clk 0:00:39]} 32. Nxe7 {[%clk 0:00:53]}  Bxe7 {[%clk 0:00:40]} 33. Re2 {[%clk 0:00:51]}  R2d4 {[%clk 0:00:40]} 34. axb5 {[%clk 0:00:48]}  cxb5 {[%clk 0:00:41]} 35. Bd5 {[%clk 0:00:48]}  a4 {[%clk 0:00:35]} 36. Kg2 {[%clk 0:00:29]}  f5 {[%clk 0:00:35]} 37. Rfe1 {[%clk 0:00:25]}  Kg7 {[%clk 0:00:31]} 38. c3 {[%clk 0:00:23]}  Rd3 {[%clk 0:00:31]} 39. Bc6 {[%clk 0:00:23]}  f4 {[%clk 0:00:29]} 40. f3 {[%clk 0:00:19]}  b4 {[%clk 0:00:26]} 41. Bxa4 {[%clk 0:00:16]}  bxc3 {[%clk 0:00:26]} 42. bxc3 {[%clk 0:00:17]}  Rxc3 {[%clk 0:00:27]} 43. Rd1 {[%clk 0:00:17]}  Ra8 {[%clk 0:00:25]} 44. Rd7 {[%clk 0:00:16]}  Kf6 {[%clk 0:00:24]} 45. Bb5 {[%clk 0:00:16]}  Raa3 {[%clk 0:00:21]} 46. gxf4 {[%clk 0:00:15]}  Rxf3 {[%clk 0:00:18]} 47. fxe5+ {[%clk 0:00:15]}  Ke6 {[%clk 0:00:19]} 48. Rb7 {[%clk 0:00:13]}  Rg3+ {[%clk 0:00:19]} 49. Kf1 {[%clk 0:00:13]}  Raf3+ {[%clk 0:00:18]} 50. Ke1 {[%clk 0:00:13]}  Bb4+ {[%clk 0:00:19]} 51. Kd1 {[%clk 0:00:14]}  Rg1+ {[%clk 0:00:16]} 52. Kc2 {[%clk 0:00:14]}  Rc3+ {[%clk 0:00:15]} 53. Kb2 {[%clk 0:00:14]}  Rgc1 {[%clk 0:00:14]} 54. Bd7+ {[%clk 0:00:14]}  Kxe5 {[%clk 0:00:14]} 55. Rxb4 {[%clk 0:00:14]}  Rc7 {[%clk 0:00:12]} 56. Bf5 {[%clk 0:00:14]}  R1c5 {[%clk 0:00:11]} 57. Rd2 {[%clk 0:00:14]}  Kf4 {[%clk 0:00:11]} 58. Bg4 {[%clk 0:00:14]}  Ke3 {[%clk 0:00:11]} 59. Re2+ {[%clk 0:00:13]}  Kf4 {[%clk 0:00:12]} 60. e5+ {[%clk 0:00:13]}  Kg5 {[%clk 0:00:10]} 61. e6 {[%clk 0:00:14]}  Kf6 {[%clk 0:00:10]} 62. e7 {[%clk 0:00:14]}  Rxe7 {[%clk 0:00:10]} 63. Rf4+ {[%clk 0:00:13]}  Kg5 {[%clk 0:00:09]} 64. Rxe7 {[%clk 0:00:13]}  Kxf4 {[%clk 0:00:09]} 65. Rg7 {[%clk 0:00:13]}  Kg3 {[%clk 0:00:09]} 66. Kb3 {[%clk 0:00:13]}  Kh4 {[%clk 0:00:09]} 67. Kb4 {[%clk 0:00:13]}  Rg5 {[%clk 0:00:06]} 68. Rh7+ {[%clk 0:00:12]}  Kg3 {[%clk 0:00:07]} 69. Kc4 {[%clk 0:00:13]}  Re5 {[%clk 0:00:06]} 70. Kd4 {[%clk 0:00:13]}  Re1 {[%clk 0:00:06]} 71. Kd3 {[%clk 0:00:12]}  Re8 {[%clk 0:00:06]} 72. Bf5 {[%clk 0:00:12]}  Kf4 {[%clk 0:00:05]} 73. Rf7 {[%clk 0:00:10]}  Rd8+ {[%clk 0:00:04]} 74. Ke2 {[%clk 0:00:10]}  Kg5 {[%clk 0:00:04]} 75. Kf3 {[%clk 0:00:09]}  Kh6 {[%clk 0:00:04]} 76. Bg4 {[%clk 0:00:09]}  Kg6 {[%clk 0:00:04]} 77. Rf5 {[%clk 0:00:09]}  Rd6 {[%clk 0:00:02]} 78. Ra5 {[%clk 0:00:08]}  Rf6+ {[%clk 0:00:02]} 79. Kg3 {[%clk 0:00:09]}  Kg7 {[%clk 0:00:03]} 80. h4 {[%clk 0:00:09]}  Kh8 {[%clk 0:00:04]} 81. h5 {[%clk 0:00:10]}  Rf8 {[%clk 0:00:04]} 82. Kh4 {[%clk 0:00:10]}  Rd8 {[%clk 0:00:04]} 83. Kg5 {[%clk 0:00:10]}  Rg8+ {[%clk 0:00:05]} 84. Kh4 {[%clk 0:00:10]}  Rb8 {[%clk 0:00:06]} 85. Bf5 {[%clk 0:00:10]}  Rb4+ {[%clk 0:00:05]} 86. Kg5 {[%clk 0:00:10]}  Rb8 {[%clk 0:00:06]} 87. Kh6 {[%clk 0:00:10]}  Rf8 {[%clk 0:00:05]} 88. Bg6 {[%clk 0:00:11]}  Rb8 {[%clk 0:00:06]} 89. Ra7 {[%clk 0:00:11]}  Rd8 {[%clk 0:00:05]} 90. Rh7+ {[%clk 0:00:11]}  Kg8 {[%clk 0:00:05]} 91. Bf7+ {[%clk 0:00:11]}  Kf8 {[%clk 0:00:05]} 92. Rh8+ {[%clk 0:00:12]}  Ke7 {[%clk 0:00:05]} 93. Rxd8 {[%clk 0:00:12]}  Kxd8 {[%clk 0:00:06]} 94. Kg7 {[%clk 0:00:13]}  Ke7 {[%clk 0:00:07]} 95. h6 {[%clk 0:00:13]} 1-0


[Site "https://www.chess.com"]

[Event "Titled Tuesday Blitz December 20 Late 2022"]
[White "White, John S."]
[Black "Ankerst, Mihael"]
[WhiteFideId "2502348"]
[BlackFideId "14602369"]
[WhiteElo "1966"]
[BlackElo "2356"]
[Result "0-1"]
[Round "03"]
[TimeControl "180+1"]
[Date "2022.12.21"]
[WhiteClock "0:00:20"]
[BlackClock "0:01:20"]

1. e4 {[%clk 0:02:58]}  c5 {[%clk 0:02:59]} 2. Nf3 {[%clk 0:02:57]}  Qb6 {[%clk 0:03:00]} 3. Nc3 {[%clk 0:02:54]}  Nc6 {[%clk 0:03:00]} 4. g3 {[%clk 0:02:48]}  e6 {[%clk 0:02:59]} 5. Bg2 {[%clk 0:02:48]}  d6 {[%clk 0:03:00]} 6. O-O {[%clk 0:02:46]}  Nf6 {[%clk 0:03:00]} 7. Re1 {[%clk 0:02:45]}  Be7 {[%clk 0:03:00]} 8. e5 {[%clk 0:02:42]}  dxe5 {[%clk 0:03:01]} 9. Nxe5 {[%clk 0:02:40]}  Nxe5 {[%clk 0:03:02]} 10. Rxe5 {[%clk 0:02:40]}  Bd7 {[%clk 0:03:02]} 11. d3 {[%clk 0:02:36]}  Bc6 {[%clk 0:03:02]} 12. Bxc6+ {[%clk 0:02:27]}  Qxc6 {[%clk 0:03:02]} 13. Qe2 {[%clk 0:02:15]}  O-O {[%clk 0:03:01]} 14. Bg5 {[%clk 0:02:01]}  h6 {[%clk 0:03:01]} 15. Bd2 {[%clk 0:01:56]}  Rfd8 {[%clk 0:03:00]} 16. Ne4 {[%clk 0:01:49]}  Nd5 {[%clk 0:03:00]} 17. Nc3 {[%clk 0:01:39]}  Nf6 {[%clk 0:02:54]} 18. Ne4 {[%clk 0:01:35]}  Nd7 {[%clk 0:02:25]} 19. Rh5 {[%clk 0:01:29]}  f5 {[%clk 0:02:24]} 20. Nc3 {[%clk 0:01:25]}  Bf6 {[%clk 0:02:16]} 21. Re1 {[%clk 0:01:24]}  Re8 {[%clk 0:02:14]} 22. Bxh6 {[%clk 0:01:14]}  Ne5 {[%clk 0:01:41]} 23. Rd1 {[%clk 0:00:55]}  Nf3+ {[%clk 0:01:38]} 24. Kf1 {[%clk 0:00:53]}  gxh6 {[%clk 0:01:38]} 25. Rxh6 {[%clk 0:00:51]}  Bg7 {[%clk 0:01:28]} 26. Rh3 {[%clk 0:00:40]}  Rad8 {[%clk 0:01:21]} 27. g4 {[%clk 0:00:26]}  Nd4 {[%clk 0:01:20]} 28. Qe3 {[%clk 0:00:20]}  Qh1# {[%clk 0:01:20]} 0-1


[Site "https://www.chess.com"]

[Event "Titled Tuesday Blitz December 20 Late 2022"]
[White "Winterberg, Lukas"]
[Black "Maksimovic, Bojan"]
[WhiteFideId "24622702"]
[BlackFideId "14408120"]
[WhiteElo "2350"]
[BlackElo "2462"]
[Result "0-1"]
[Round "03"]
[TimeControl "180+1"]
[Date "2022.12.21"]
[WhiteClock "0:00:16"]
[BlackClock "0:00:07"]

1. Nf3 {[%clk 0:03:00]}  Nf6 {[%clk 0:02:58]} 2. c4 {[%clk 0:03:00]}  g6 {[%clk 0:02:58]} 3. Nc3 {[%clk 0:02:59]}  Bg7 {[%clk 0:02:58]} 4. e4 {[%clk 0:02:59]}  d6 {[%clk 0:02:58]} 5. d4 {[%clk 0:02:57]}  O-O {[%clk 0:02:58]} 6. Be2 {[%clk 0:02:57]}  Nbd7 {[%clk 0:02:58]} 7. h3 {[%clk 0:02:56]}  e5 {[%clk 0:02:58]} 8. d5 {[%clk 0:02:54]}  Nh5 {[%clk 0:02:47]} 9. g3 {[%clk 0:02:49]}  Bf6 {[%clk 0:02:32]} 10. Nh2 {[%clk 0:02:41]}  Ng7 {[%clk 0:02:32]} 11. Ng4 {[%clk 0:02:40]}  Be7 {[%clk 0:02:32]} 12. h4 {[%clk 0:02:29]}  h5 {[%clk 0:02:09]} 13. Nh6+ {[%clk 0:02:06]}  Kh7 {[%clk 0:02:08]} 14. g4 {[%clk 0:02:06]}  Nf6 {[%clk 0:02:07]} 15. g5 {[%clk 0:02:00]}  Ng8 {[%clk 0:01:49]} 16. Nxg8 {[%clk 0:01:48]}  Kxg8 {[%clk 0:01:50]} 17. Be3 {[%clk 0:01:49]}  f6 {[%clk 0:01:33]} 18. gxf6 {[%clk 0:01:44]}  Bxf6 {[%clk 0:01:32]} 19. Qd2 {[%clk 0:01:44]}  Bxh4 {[%clk 0:01:25]} 20. O-O-O {[%clk 0:01:44]}  Bxf2 {[%clk 0:01:19]} 21. Bg5 {[%clk 0:01:28]}  Qd7 {[%clk 0:01:18]} 22. Kb1 {[%clk 0:01:28]}  a6 {[%clk 0:01:13]} 23. Rdf1 {[%clk 0:01:27]}  Bg3 {[%clk 0:00:52]} 24. Rxf8+ {[%clk 0:01:21]}  Kxf8 {[%clk 0:00:53]} 25. Bh6 {[%clk 0:01:17]}  Kg8 {[%clk 0:00:30]} 26. Qg5 {[%clk 0:01:14]}  Bf4 {[%clk 0:00:29]} 27. Qxg6 {[%clk 0:01:14]}  Qf7 {[%clk 0:00:29]} 28. Bxh5 {[%clk 0:00:34]}  Qxg6 {[%clk 0:00:20]} 29. Bxg6 {[%clk 0:00:35]}  Bd7 {[%clk 0:00:11]} 30. Ne2 {[%clk 0:00:30]}  Bxh6 {[%clk 0:00:08]} 31. Rxh6 {[%clk 0:00:31]}  Rf8 {[%clk 0:00:08]} 32. Ng3 {[%clk 0:00:30]}  Rf3 {[%clk 0:00:06]} 33. Nh5 {[%clk 0:00:24]}  Nxh5 {[%clk 0:00:03]} 34. Bxh5 {[%clk 0:00:20]}  Kg7 {[%clk 0:00:03]} 35. Bxf3 {[%clk 0:00:17]}  Kxh6 {[%clk 0:00:04]} 36. Kc2 {[%clk 0:00:18]}  Kg5 {[%clk 0:00:04]} 37. Kd3 {[%clk 0:00:18]}  Kf4 {[%clk 0:00:05]} 38. Bg2 {[%clk 0:00:15]}  Be8 {[%clk 0:00:05]} 39. b4 {[%clk 0:00:15]}  b6 {[%clk 0:00:05]} 40. a3 {[%clk 0:00:15]}  Bh5 {[%clk 0:00:05]} 41. Bh3 {[%clk 0:00:12]}  Bf3 {[%clk 0:00:03]} 42. Bf5 {[%clk 0:00:12]}  Bg4 {[%clk 0:00:03]} 43. Bg6 {[%clk 0:00:12]}  Bf3 {[%clk 0:00:03]} 44. Bh7 {[%clk 0:00:12]}  Bg2 {[%clk 0:00:03]} 45. Bg6 {[%clk 0:00:12]}  Bf1+ {[%clk 0:00:04]} 46. Kc3 {[%clk 0:00:13]}  Ke3 {[%clk 0:00:04]} 47. Bf5 {[%clk 0:00:10]}  Bg2 {[%clk 0:00:04]} 48. Bc8 {[%clk 0:00:10]}  a5 {[%clk 0:00:05]} 49. c5 {[%clk 0:00:10]}  axb4+ {[%clk 0:00:04]} 50. axb4 {[%clk 0:00:10]}  bxc5 {[%clk 0:00:03]} 51. bxc5 {[%clk 0:00:11]}  Kxe4 {[%clk 0:00:03]} 52. cxd6 {[%clk 0:00:10]}  cxd6 {[%clk 0:00:03]} 53. Kc4 {[%clk 0:00:10]}  Bf1+ {[%clk 0:00:04]} 54. Kc3 {[%clk 0:00:09]}  Kxd5 {[%clk 0:00:04]} 55. Bb7+ {[%clk 0:00:10]}  Kc5 {[%clk 0:00:05]} 56. Kd2 {[%clk 0:00:11]}  d5 {[%clk 0:00:05]} 57. Ke3 {[%clk 0:00:11]}  Bc4 {[%clk 0:00:05]} 58. Bc8 {[%clk 0:00:11]}  Bb5 {[%clk 0:00:05]} 59. Kd2 {[%clk 0:00:12]}  Be8 {[%clk 0:00:05]} 60. Bg4 {[%clk 0:00:13]}  Bg6 {[%clk 0:00:06]} 61. Ke3 {[%clk 0:00:14]}  d4+ {[%clk 0:00:06]} 62. Kd2 {[%clk 0:00:15]}  e4 {[%clk 0:00:07]} 63. Ke2 {[%clk 0:00:16]}  Kd5 {[%clk 0:00:07]} 64. Bh3 {[%clk 0:00:17]}  Ke5 {[%clk 0:00:07]} 65. Bf5 {[%clk 0:00:16]}  Bxf5 {[%clk 0:00:07]} 0-1


[Site "https://www.chess.com"]

[Event "Titled Tuesday Blitz December 20 Late 2022"]
[White "Yedidia, Daniel"]
[Black "Skibbe, Willi"]
[WhiteFideId "30905907"]
[BlackFideId "4682190"]
[WhiteElo "2567"]
[BlackElo "2359"]
[Result "1-0"]
[Round "03"]
[TimeControl "180+1"]
[Date "2022.12.21"]
[WhiteClock "0:01:45"]
[BlackClock "0:01:30"]

1. d4 {[%clk 0:03:00]}  d5 {[%clk 0:02:59]} 2. c4 {[%clk 0:03:01]}  e6 {[%clk 0:03:00]} 3. Nc3 {[%clk 0:03:01]}  Nf6 {[%clk 0:03:00]} 4. cxd5 {[%clk 0:03:02]}  exd5 {[%clk 0:03:00]} 5. Bg5 {[%clk 0:03:02]}  Be7 {[%clk 0:03:00]} 6. e3 {[%clk 0:03:02]}  O-O {[%clk 0:02:58]} 7. Bd3 {[%clk 0:03:03]}  h6 {[%clk 0:02:58]} 8. Bh4 {[%clk 0:03:03]}  Re8 {[%clk 0:02:56]} 9. Nge2 {[%clk 0:03:03]}  c6 {[%clk 0:02:50]} 10. O-O {[%clk 0:03:00]}  Nbd7 {[%clk 0:02:35]} 11. Qc2 {[%clk 0:02:59]}  Nh5 {[%clk 0:02:35]} 12. Bxe7 {[%clk 0:02:59]}  Qxe7 {[%clk 0:02:35]} 13. Rad1 {[%clk 0:02:58]}  Nhf6 {[%clk 0:02:28]} 14. Rfe1 {[%clk 0:02:58]}  b5 {[%clk 0:02:23]} 15. Ng3 {[%clk 0:02:56]}  Nb6 {[%clk 0:02:22]} 16. e4 {[%clk 0:02:55]}  dxe4 {[%clk 0:02:17]} 17. Ncxe4 {[%clk 0:02:51]}  Nxe4 {[%clk 0:02:16]} 18. Bxe4 {[%clk 0:02:46]}  Kf8 {[%clk 0:02:00]} 19. Re2 {[%clk 0:02:17]}  Qc7 {[%clk 0:01:51]} 20. Qc5+ {[%clk 0:01:54]}  Re7 {[%clk 0:01:43]} 21. Bxc6 {[%clk 0:01:54]}  Bb7 {[%clk 0:01:37]} 22. Rxe7 {[%clk 0:01:45]}  Qxc6 {[%clk 0:01:31]} 23. Rxb7+ {[%clk 0:01:44]}  Qxc5 {[%clk 0:01:30]} 24. dxc5 {[%clk 0:01:45]} 1-0


[Site "https://www.chess.com"]

[Event "Titled Tuesday Blitz December 20 Late 2022"]
[White "Zakhartsov, Vladimir"]
[Black "Koutlas, Nikolaos"]
[WhiteFideId "4145097"]
[BlackFideId "25827138"]
[WhiteElo "2535"]
[BlackElo "2167"]
[Result "1-0"]
[Round "03"]
[TimeControl "180+1"]
[Date "2022.12.20"]
[WhiteClock "0:00:29"]
[BlackClock "0:00:05"]

1. c4 {[%clk 0:03:00]}  b6 {[%clk 0:02:54]} 2. d4 {[%clk 0:02:53]}  Bb7 {[%clk 0:02:54]} 3. Nc3 {[%clk 0:02:53]}  e6 {[%clk 0:02:52]} 4. a3 {[%clk 0:02:52]}  Nf6 {[%clk 0:02:51]} 5. Nf3 {[%clk 0:02:50]}  d5 {[%clk 0:02:46]} 6. cxd5 {[%clk 0:02:48]}  exd5 {[%clk 0:02:45]} 7. Bg5 {[%clk 0:02:47]}  h6 {[%clk 0:02:40]} 8. Bh4 {[%clk 0:02:42]}  Be7 {[%clk 0:02:38]} 9. e3 {[%clk 0:02:42]}  O-O {[%clk 0:02:37]} 10. Bd3 {[%clk 0:02:43]}  c5 {[%clk 0:02:31]} 11. O-O {[%clk 0:02:42]}  c4 {[%clk 0:02:31]} 12. Bc2 {[%clk 0:02:41]}  Re8 {[%clk 0:02:23]} 13. Ne5 {[%clk 0:02:41]}  Nfd7 {[%clk 0:02:13]} 14. Bg3 {[%clk 0:02:11]}  Nxe5 {[%clk 0:02:04]} 15. dxe5 {[%clk 0:02:11]}  Bc5 {[%clk 0:01:43]} 16. Qf3 {[%clk 0:01:53]}  Nd7 {[%clk 0:01:41]} 17. Nxd5 {[%clk 0:01:06]}  Nxe5 {[%clk 0:01:34]} 18. Nf6+ {[%clk 0:01:06]}  Qxf6 {[%clk 0:01:28]} 19. Qxb7 {[%clk 0:01:06]}  Rad8 {[%clk 0:01:14]} 20. Rad1 {[%clk 0:01:04]}  Nd3 {[%clk 0:01:10]} 21. b4 {[%clk 0:01:03]}  Bd6 {[%clk 0:00:19]} 22. Bxd3 {[%clk 0:00:56]}  Bxg3 {[%clk 0:00:19]} 23. fxg3 {[%clk 0:00:54]}  Qe6 {[%clk 0:00:14]} 24. Bc2 {[%clk 0:00:35]}  Rxd1 {[%clk 0:00:13]} 25. Bxd1 {[%clk 0:00:33]}  Qxe3+ {[%clk 0:00:13]} 26. Kh1 {[%clk 0:00:34]}  Re7 {[%clk 0:00:05]} 27. Qc8+ {[%clk 0:00:33]}  Kh7 {[%clk 0:00:05]} 28. Qxc4 {[%clk 0:00:32]}  Qxa3 {[%clk 0:00:05]} 29. Bc2+ {[%clk 0:00:32]}  g6 {[%clk 0:00:04]} 30. Rxf7+ {[%clk 0:00:30]}  Kh8 {[%clk 0:00:05]} 31. Rf8+ {[%clk 0:00:29]}  Kg7 {[%clk 0:00:05]} 32. Qg8# {[%clk 0:00:29]} 1-0


[Site "https://www.chess.com"]

[Event "Titled Tuesday Blitz December 20 Late 2022"]
[White "monkins"]
[Black "Janaszak, Dawid"]
[BlackFideId "1119206"]
[WhiteElo "2234"]
[BlackElo "2220"]
[Result "0-1"]
[Round "03"]
[TimeControl "180+1"]
[Date "2022.12.21"]
[WhiteClock "0:00:05"]
[BlackClock "0:00:29"]

1. Nf3 {[%clk 0:03:00]}  g6 {[%clk 0:02:59]} 2. g3 {[%clk 0:03:00]}  Bg7 {[%clk 0:02:58]} 3. Bg2 {[%clk 0:03:01]}  e5 {[%clk 0:02:56]} 4. d3 {[%clk 0:02:59]}  d6 {[%clk 0:02:56]} 5. c4 {[%clk 0:03:00]}  Ne7 {[%clk 0:02:56]} 6. Nc3 {[%clk 0:03:00]}  O-O {[%clk 0:02:57]} 7. O-O {[%clk 0:03:00]}  c5 {[%clk 0:02:56]} 8. a3 {[%clk 0:02:58]}  Nbc6 {[%clk 0:02:57]} 9. Rb1 {[%clk 0:02:58]}  a5 {[%clk 0:02:55]} 10. Bd2 {[%clk 0:02:53]}  h6 {[%clk 0:02:52]} 11. Nb5 {[%clk 0:02:45]}  Be6 {[%clk 0:02:44]} 12. b4 {[%clk 0:02:45]}  axb4 {[%clk 0:02:42]} 13. axb4 {[%clk 0:02:46]}  b6 {[%clk 0:02:29]} 14. Ne1 {[%clk 0:02:27]}  Qd7 {[%clk 0:02:25]} 15. Nc2 {[%clk 0:02:21]}  Rad8 {[%clk 0:02:16]} 16. Re1 {[%clk 0:02:21]}  Bh3 {[%clk 0:02:16]} 17. Bh1 {[%clk 0:02:20]}  Bg4 {[%clk 0:02:14]} 18. bxc5 {[%clk 0:02:14]}  bxc5 {[%clk 0:02:13]} 19. Ne3 {[%clk 0:02:13]}  Be6 {[%clk 0:02:13]} 20. Nc3 {[%clk 0:02:12]}  Nb4 {[%clk 0:02:06]} 21. Ncd5 {[%clk 0:02:03]}  Nbxd5 {[%clk 0:02:00]} 22. cxd5 {[%clk 0:02:03]}  Bh3 {[%clk 0:02:00]} 23. Nc4 {[%clk 0:01:57]}  f5 {[%clk 0:01:50]} 24. Ba5 {[%clk 0:01:49]}  Rb8 {[%clk 0:01:46]} 25. Qc2 {[%clk 0:01:38]}  f4 {[%clk 0:01:43]} 26. Rxb8 {[%clk 0:01:36]}  Rxb8 {[%clk 0:01:42]} 27. Rb1 {[%clk 0:01:35]}  Rf8 {[%clk 0:01:39]} 28. Rb6 {[%clk 0:01:13]}  Nf5 {[%clk 0:01:35]} 29. Bc3 {[%clk 0:01:06]}  fxg3 {[%clk 0:01:33]} 30. hxg3 {[%clk 0:01:05]}  Qf7 {[%clk 0:01:28]} 31. e3 {[%clk 0:00:28]}  Qe7 {[%clk 0:00:56]} 32. e4 {[%clk 0:00:21]}  Nxg3 {[%clk 0:00:33]} 33. fxg3 {[%clk 0:00:18]}  Rf1+ {[%clk 0:00:34]} 34. Kh2 {[%clk 0:00:18]}  Qf6 {[%clk 0:00:35]} 35. Kxh3 {[%clk 0:00:14]}  Rxh1+ {[%clk 0:00:34]} 36. Qh2 {[%clk 0:00:07]}  Qf1+ {[%clk 0:00:34]} 37. Kg4 {[%clk 0:00:06]}  h5+ {[%clk 0:00:29]} 38. Kg5 {[%clk 0:00:05]}  Qf6# {[%clk 0:00:29]} 0-1


[Site "https://www.chess.com"]

[Event "Titled Tuesday Blitz December 20 Late 2022"]
[White "Andrews, Todd"]
[Black "Novik, Maxim"]
[WhiteFideId "2012456"]
[BlackFideId "4102924"]
[WhiteElo "2331"]
[BlackElo "2291"]
[Result "0-1"]
[Round "04"]
[TimeControl "180+1"]
[Date "2022.12.21"]
[WhiteClock "0:00:07"]
[BlackClock "0:01:07"]

1. e4 {[%clk 0:03:00]}  c5 {[%clk 0:02:59]} 2. Nf3 {[%clk 0:03:01]}  e6 {[%clk 0:02:59]} 3. d3 {[%clk 0:03:01]}  d5 {[%clk 0:02:57]} 4. Nbd2 {[%clk 0:03:01]}  Nc6 {[%clk 0:02:57]} 5. g3 {[%clk 0:03:01]}  Nf6 {[%clk 0:02:57]} 6. Bg2 {[%clk 0:03:02]}  Be7 {[%clk 0:02:58]} 7. O-O {[%clk 0:03:02]}  O-O {[%clk 0:02:58]} 8. Re1 {[%clk 0:03:02]}  b5 {[%clk 0:02:58]} 9. e5 {[%clk 0:03:01]}  Nd7 {[%clk 0:02:58]} 10. Nf1 {[%clk 0:03:01]}  Qc7 {[%clk 0:02:58]} 11. Bf4 {[%clk 0:03:01]}  Bb7 {[%clk 0:02:57]} 12. c3 {[%clk 0:03:01]}  Rfc8 {[%clk 0:02:56]} 13. h4 {[%clk 0:02:52]}  Qd8 {[%clk 0:02:55]} 14. N1h2 {[%clk 0:02:44]}  a5 {[%clk 0:02:53]} 15. a4 {[%clk 0:02:43]}  b4 {[%clk 0:02:50]} 16. d4 {[%clk 0:02:43]}  bxc3 {[%clk 0:02:37]} 17. bxc3 {[%clk 0:02:44]}  cxd4 {[%clk 0:02:35]} 18. cxd4 {[%clk 0:02:45]}  Nb4 {[%clk 0:02:35]} 19. Rb1 {[%clk 0:02:32]}  Ba6 {[%clk 0:02:33]} 20. Re3 {[%clk 0:02:28]}  Nb6 {[%clk 0:02:18]} 21. h5 {[%clk 0:02:21]}  h6 {[%clk 0:02:17]} 22. Ng4 {[%clk 0:02:15]}  Bf8 {[%clk 0:02:16]} 23. Nd2 {[%clk 0:01:48]}  Qe8 {[%clk 0:02:15]} 24. Bxh6 {[%clk 0:01:19]}  Nxa4 {[%clk 0:02:07]} 25. Bxg7 {[%clk 0:00:53]}  Bxg7 {[%clk 0:02:05]} 26. h6 {[%clk 0:00:50]}  Bh8 {[%clk 0:02:05]} 27. Nf6+ {[%clk 0:00:46]}  Bxf6 {[%clk 0:02:04]} 28. exf6 {[%clk 0:00:47]}  Kh8 {[%clk 0:01:48]} 29. Qh5 {[%clk 0:00:42]}  Nc3 {[%clk 0:01:40]} 30. Ra1 {[%clk 0:00:31]}  Bd3 {[%clk 0:01:37]} 31. Re5 {[%clk 0:00:24]}  Bg6 {[%clk 0:01:35]} 32. Qh4 {[%clk 0:00:24]}  Nc2 {[%clk 0:01:32]} 33. Rc1 {[%clk 0:00:17]}  Nxd4 {[%clk 0:01:31]} 34. Qxd4 {[%clk 0:00:16]}  Ne2+ {[%clk 0:01:31]} 35. Rxe2 {[%clk 0:00:16]}  Rxc1+ {[%clk 0:01:31]} 36. Kh2 {[%clk 0:00:17]}  a4 {[%clk 0:01:29]} 37. Nf3 {[%clk 0:00:16]}  Qf8 {[%clk 0:01:26]} 38. Qh4 {[%clk 0:00:15]}  a3 {[%clk 0:01:26]} 39. Ne5 {[%clk 0:00:14]}  a2 {[%clk 0:01:13]} 40. Rxa2 {[%clk 0:00:13]}  Rxa2 {[%clk 0:01:12]} 41. Qg5 {[%clk 0:00:10]}  Qg8 {[%clk 0:01:09]} 42. f4 {[%clk 0:00:09]}  Rcc2 {[%clk 0:01:08]} 43. f5 {[%clk 0:00:07]}  Rxg2+ {[%clk 0:01:08]} 44. Kh3 {[%clk 0:00:07]}  Rh2+ {[%clk 0:01:08]} 45. Kg4 {[%clk 0:00:07]}  Bxf5+ {[%clk 0:01:07]} 0-1


[Site "https://www.chess.com"]